{"text_format":"3","workbook":"xlsx","n_sheets":3,"sheets":["Bắt đầu","N.sách quà tặng, trình theo dõi","Dữ liệu"],"not_rendered":{"charts":1,"defined_names":1},"read":"whole","date_system":"1900"}

{"sheet":"Bắt đầu","index":0,"n_rows":7,"n_cols":2,"rows_kept":7}
[null,"Giới thiệu về mẫu"]
[null,"Sử dụng mẫu này để ghi nhật ký giao dịch mua quà tặng của bạn và theo dõi chúng so với ngân sách."]
[null,"Nhập vào bảng các tên gia đình và bạn bè, các mặt hàng quà tặng, số tiền đã chi và lên ngân sách, và ghi chú, và chọn dịp và tháng sự kiện."]
[null,"Biểu đồ Tổng quan Hàng tháng được cập nhật tự động."]
[null,"Ghi chú: "]
[null,"Bạn có thể đọc thêm hướng dẫn ở cột A trong trang tính BẢNG THEO DÕI VÀ NGÂN SÁCH QUÀ TẶNG. Văn bản này đã được ẩn một cách chủ ý. Để loại bỏ văn bản, chọn cột A, rồi chọn XÓA. Để bỏ ẩn văn bản, chọn cột A, rồi thay đổi màu phông chữ."]
[null,"Để tìm hiểu thêm về các bảng, hãy nhấn SHIFT rồi nhấn F10 trong một bảng, chọn tùy chọn BẢNG, rồi chọn VĂN BẢN THAY THẾ."]

{"sheet":"N.sách quà tặng, trình theo dõi","index":1,"n_rows":10,"n_cols":13,"rows_kept":10,"merged":[[0,1,0,4],[0,5,0,12],[1,1,1,2],[2,1,2,12],[3,1,3,3]]}
["Tạo Bảng theo dõi và Ngân sách Quà tặng cá nhân trong trang tính này. Tiêu đề của trang tính nằm trong ô bên phải và mẹo nằm trong ô F1. Các hướng dẫn hữu ích về cách sử dụng trang tính này đều nằm trong các ô trong cột này.","N.sách quà tặng, trình theo dõi",{"$nulls":3},"Điền vào nhiều nhất có thể vào đầu mỗi năm mới. Nhập tên gia đình và bạn bè, chọn dịp quà tặng, chọn tháng sự kiện và nhập số tiền bạn muốn chi. Mỗi người có thể xuất hiện nhiều lần trong bảng cho từng dịp khác nhau (sinh nhật, ngày lễ, bữa tiệc mừng, v.v.)."]
["Nhãn Tổng quan Hàng tháng nằm trong ô bên phải và mẹo nằm trong ô D2.","Tổng quan Hàng tháng",null,"Sử dụng đồ thị để xem các tháng sắp tới để lập kế hoạch trước. Ghi nhật ký giao dịch mua hàng của bạn để theo dõi chúng so với ngân sách của bạn."]
["Sơ đồ cột cho số tiền được lập ngân sách với lớp phủ biểu đồ đường cho số tiền đã chi ở ô bên phải.","Sơ đồ cột cho số tiền được lập ngân sách với lớp phủ biểu đồ đường cho số tiền đã chi ở ô này."]
["Nhãn Bảng theo dõi và Ngân sách Quà tặng nằm trong ô bên phải.","N.sách quà tặng, trình theo dõi"]
["Nhập chi tiết vào bảng Theo dõi Ngân sách bắt đầu ở ô bên phải.","Ai","Dịp","Tháng","Số tiền\nđược lên ngân sách","Số tiền\nđã chi","Quà tặng","Liên kết đến quà tặng","Trong cửa hàng/\nTrực tuyến","Đã mua?","Đã bọc?","Đã gửi?","Ghi chú"]
[null,"Tên 1","Sinh nhật","Tháng Sáu",{"v":50,"d":"50 ₫"},{"v":30,"d":"30 ₫"},"Giày","Người bán","Trực tuyến","Có","Không","Không","16/6, Vé xem phim"]
[null,"Tên 2","Kỷ niệm","Tháng Tư",{"v":20,"d":"20 ₫"},{"v":20,"d":"20 ₫"},"Một con mèo","Người bán","Trong cửa hàng","Không","Không","Không","Anh ấy đã đề cập mình thích chó"]
[null,"Tên 3","Ngày lễ","Tháng Bảy",{"v":50,"d":"50 ₫"},{"v":70,"d":"70 ₫"},"Tai nghe","Người bán","Trực tuyến","Không","Không","Không","Đồ trong ký túc xá"]
[null,"Tên 4","Sinh nhật","Tháng Giêng",{"v":20,"d":"20 ₫"},{"v":30,"d":"30 ₫"},"Trò chơi","Người bán","Trong cửa hàng","Có","Có","Có"]
[null,"Tên 5","Đám cưới","Tháng Sáu",{"v":100,"d":"100 ₫"},{"v":150,"d":"150 ₫"},"Bình tinh thể","Người bán","Trong cửa hàng","Có","Có","Không"]

{"sheet":"Dữ liệu","index":2,"n_rows":13,"n_cols":8,"rows_kept":13,"hidden":true}
["Dịp",null,"Ngày","Ngày","Số tiền đã lập ngân sách\nSinh nhật","Số tiền đã lập ngân sách\nNgày lễ","Số tiền đã lập ngân sách\nKhác","Số tiền đã chi"]
["Sinh nhật",null,"Tháng Giêng","Thg1",{"$f":"SUMIFS(Trình_theo_dõi_ngân_sách[Số tiền\nđược lên ngân sách],Trình_theo_dõi_ngân_sách[Tháng],\"Tháng Giêng\",Trình_theo_dõi_ngân_sách[Dịp],\"Sinh nhật\")","v":{"v":20,"d":"20 ₫"}},{"$f":"SUMIFS(Trình_theo_dõi_ngân_sách[Số tiền\nđược lên ngân sách],Trình_theo_dõi_ngân_sách[Tháng],\"Tháng Giêng\",Trình_theo_dõi_ngân_sách[Dịp],\"Ngày lễ\")","v":{"v":0,"d":"0 ₫"}},{"$f":"SUMIFS(Trình_theo_dõi_ngân_sách[Số tiền\nđược lên ngân sách],Trình_theo_dõi_ngân_sách[Tháng],\"Tháng Giêng\",Trình_theo_dõi_ngân_sách[Dịp],\"<>Ngày lễ\",Trình_theo_dõi_ngân_sách[Dịp],\"<>Sinh nhật\")","v":{"v":0,"d":"0 ₫"}},{"$f":"SUMIFS(Trình_theo_dõi_ngân_sách[Số tiền\nđã chi],Trình_theo_dõi_ngân_sách[Tháng],\"Tháng Giêng\")","v":{"v":30,"d":"30 ₫"}}]
["Ngày lễ",null,"Tháng Hai","Thg2",{"$f":"SUMIFS(Trình_theo_dõi_ngân_sách[Số tiền\nđược lên ngân sách],Trình_theo_dõi_ngân_sách[Tháng],\"Tháng Hai\",Trình_theo_dõi_ngân_sách[Dịp],\"Sinh nhật\")","v":{"v":0,"d":"0 ₫"}},{"$f":"SUMIFS(Trình_theo_dõi_ngân_sách[Số tiền\nđược lên ngân sách],Trình_theo_dõi_ngân_sách[Tháng],\"Tháng Hai\",Trình_theo_dõi_ngân_sách[Dịp],\"Ngày lễ\")","v":{"v":0,"d":"0 ₫"}},{"$f":"SUMIFS(Trình_theo_dõi_ngân_sách[Số tiền\nđược lên ngân sách],Trình_theo_dõi_ngân_sách[Tháng],\"Tháng Hai\",Trình_theo_dõi_ngân_sách[Dịp],\"<>Ngày lễ\",Trình_theo_dõi_ngân_sách[Dịp],\"<>Sinh nhật\")","v":{"v":0,"d":"0 ₫"}},{"$f":"SUMIFS(Trình_theo_dõi_ngân_sách[Số tiền\nđã chi],Trình_theo_dõi_ngân_sách[Tháng],\"Tháng Hai\")","v":{"v":0,"d":"0 ₫"}}]
["Kỷ niệm",null,"Tháng Ba","Thg3",{"$f":"SUMIFS(Trình_theo_dõi_ngân_sách[Số tiền\nđược lên ngân sách],Trình_theo_dõi_ngân_sách[Tháng],\"Tháng Ba\",Trình_theo_dõi_ngân_sách[Dịp],\"Sinh nhật\")","v":{"v":0,"d":"0 ₫"}},{"$f":"SUMIFS(Trình_theo_dõi_ngân_sách[Số tiền\nđược lên ngân sách],Trình_theo_dõi_ngân_sách[Tháng],\"Tháng Ba\",Trình_theo_dõi_ngân_sách[Dịp],\"Ngày lễ\")","v":{"v":0,"d":"0 ₫"}},{"$f":"SUMIFS(Trình_theo_dõi_ngân_sách[Số tiền\nđược lên ngân sách],Trình_theo_dõi_ngân_sách[Tháng],\"Tháng Ba\",Trình_theo_dõi_ngân_sách[Dịp],\"<>Ngày lễ\",Trình_theo_dõi_ngân_sách[Dịp],\"<>Sinh nhật\")","v":{"v":0,"d":"0 ₫"}},{"$f":"SUMIFS(Trình_theo_dõi_ngân_sách[Số tiền\nđã chi],Trình_theo_dõi_ngân_sách[Tháng],\"Tháng Ba\")","v":{"v":0,"d":"0 ₫"}}]
["Đám cưới",null,"Tháng Tư","Thg4",{"$f":"SUMIFS(Trình_theo_dõi_ngân_sách[Số tiền\nđược lên ngân sách],Trình_theo_dõi_ngân_sách[Tháng],\"Tháng Tư\",Trình_theo_dõi_ngân_sách[Dịp],\"Sinh nhật\")","v":{"v":0,"d":"0 ₫"}},{"$f":"SUMIFS(Trình_theo_dõi_ngân_sách[Số tiền\nđược lên ngân sách],Trình_theo_dõi_ngân_sách[Tháng],\"Tháng Tư\",Trình_theo_dõi_ngân_sách[Dịp],\"Ngày lễ\")","v":{"v":0,"d":"0 ₫"}},{"$f":"SUMIFS(Trình_theo_dõi_ngân_sách[Số tiền\nđược lên ngân sách],Trình_theo_dõi_ngân_sách[Tháng],\"Tháng Tư\",Trình_theo_dõi_ngân_sách[Dịp],\"<>Ngày lễ\",Trình_theo_dõi_ngân_sách[Dịp],\"<>Sinh nhật\")","v":{"v":20,"d":"20 ₫"}},{"$f":"SUMIFS(Trình_theo_dõi_ngân_sách[Số tiền\nđã chi],Trình_theo_dõi_ngân_sách[Tháng],\"Tháng Tư\")","v":{"v":20,"d":"20 ₫"}}]
["Bữa tiệc mừng cô dâu",null,"Tháng Năm","Thg5",{"$f":"SUMIFS(Trình_theo_dõi_ngân_sách[Số tiền\nđược lên ngân sách],Trình_theo_dõi_ngân_sách[Tháng],\"Tháng Năm\",Trình_theo_dõi_ngân_sách[Dịp],\"Sinh nhật\")","v":{"v":0,"d":"0 ₫"}},{"$f":"SUMIFS(Trình_theo_dõi_ngân_sách[Số tiền\nđược lên ngân sách],Trình_theo_dõi_ngân_sách[Tháng],\"Tháng Năm\",Trình_theo_dõi_ngân_sách[Dịp],\"Ngày lễ\")","v":{"v":0,"d":"0 ₫"}},{"$f":"SUMIFS(Trình_theo_dõi_ngân_sách[Số tiền\nđược lên ngân sách],Trình_theo_dõi_ngân_sách[Tháng],\"Tháng Năm\",Trình_theo_dõi_ngân_sách[Dịp],\"<>Ngày lễ\",Trình_theo_dõi_ngân_sách[Dịp],\"<>Sinh nhật\")","v":{"v":0,"d":"0 ₫"}},{"$f":"SUMIFS(Trình_theo_dõi_ngân_sách[Số tiền\nđã chi],Trình_theo_dõi_ngân_sách[Tháng],\"Tháng Năm\")","v":{"v":0,"d":"0 ₫"}}]
["Bữa tiệc mừng em bé",null,"Tháng Sáu","Thg6",{"$f":"SUMIFS(Trình_theo_dõi_ngân_sách[Số tiền\nđược lên ngân sách],Trình_theo_dõi_ngân_sách[Tháng],\"Tháng Sáu\",Trình_theo_dõi_ngân_sách[Dịp],\"Sinh nhật\")","v":{"v":50,"d":"50 ₫"}},{"$f":"SUMIFS(Trình_theo_dõi_ngân_sách[Số tiền\nđược lên ngân sách],Trình_theo_dõi_ngân_sách[Tháng],\"Tháng Sáu\",Trình_theo_dõi_ngân_sách[Dịp],\"Ngày lễ\")","v":{"v":0,"d":"0 ₫"}},{"$f":"SUMIFS(Trình_theo_dõi_ngân_sách[Số tiền\nđược lên ngân sách],Trình_theo_dõi_ngân_sách[Tháng],\"Tháng Sáu\",Trình_theo_dõi_ngân_sách[Dịp],\"<>Ngày lễ\",Trình_theo_dõi_ngân_sách[Dịp],\"<>Sinh nhật\")","v":{"v":100,"d":"100 ₫"}},{"$f":"SUMIFS(Trình_theo_dõi_ngân_sách[Số tiền\nđã chi],Trình_theo_dõi_ngân_sách[Tháng],\"Tháng Sáu\")","v":{"v":180,"d":"180 ₫"}}]
["Tốt nghiệp",null,"Tháng Bảy","Thg7",{"$f":"SUMIFS(Trình_theo_dõi_ngân_sách[Số tiền\nđược lên ngân sách],Trình_theo_dõi_ngân_sách[Tháng],\"Tháng Bảy\",Trình_theo_dõi_ngân_sách[Dịp],\"Sinh nhật\")","v":{"v":0,"d":"0 ₫"}},{"$f":"SUMIFS(Trình_theo_dõi_ngân_sách[Số tiền\nđược lên ngân sách],Trình_theo_dõi_ngân_sách[Tháng],\"Tháng Bảy\",Trình_theo_dõi_ngân_sách[Dịp],\"Ngày lễ\")","v":{"v":50,"d":"50 ₫"}},{"$f":"SUMIFS(Trình_theo_dõi_ngân_sách[Số tiền\nđược lên ngân sách],Trình_theo_dõi_ngân_sách[Tháng],\"Tháng Bảy\",Trình_theo_dõi_ngân_sách[Dịp],\"<>Ngày lễ\",Trình_theo_dõi_ngân_sách[Dịp],\"<>Sinh nhật\")","v":{"v":0,"d":"0 ₫"}},{"$f":"SUMIFS(Trình_theo_dõi_ngân_sách[Số tiền\nđã chi],Trình_theo_dõi_ngân_sách[Tháng],\"Tháng Bảy\")","v":{"v":70,"d":"70 ₫"}}]
["Khác",null,"Tháng Tám","Thg8",{"$f":"SUMIFS(Trình_theo_dõi_ngân_sách[Số tiền\nđược lên ngân sách],Trình_theo_dõi_ngân_sách[Tháng],\"Tháng Tám\",Trình_theo_dõi_ngân_sách[Dịp],\"Sinh nhật\")","v":{"v":0,"d":"0 ₫"}},{"$f":"SUMIFS(Trình_theo_dõi_ngân_sách[Số tiền\nđược lên ngân sách],Trình_theo_dõi_ngân_sách[Tháng],\"Tháng Tám\",Trình_theo_dõi_ngân_sách[Dịp],\"Ngày lễ\")","v":{"v":0,"d":"0 ₫"}},{"$f":"SUMIFS(Trình_theo_dõi_ngân_sách[Số tiền\nđược lên ngân sách],Trình_theo_dõi_ngân_sách[Tháng],\"Tháng Tám\",Trình_theo_dõi_ngân_sách[Dịp],\"<>Ngày lễ\",Trình_theo_dõi_ngân_sách[Dịp],\"<>Sinh nhật\")","v":{"v":0,"d":"0 ₫"}},{"$f":"SUMIFS(Trình_theo_dõi_ngân_sách[Số tiền\nđã chi],Trình_theo_dõi_ngân_sách[Tháng],\"Tháng Tám\")","v":{"v":0,"d":"0 ₫"}}]
[null,null,"Tháng Chín","Thg9",{"$f":"SUMIFS(Trình_theo_dõi_ngân_sách[Số tiền\nđược lên ngân sách],Trình_theo_dõi_ngân_sách[Tháng],\"Tháng Chín\",Trình_theo_dõi_ngân_sách[Dịp],\"Sinh nhật\")","v":{"v":0,"d":"0 ₫"}},{"$f":"SUMIFS(Trình_theo_dõi_ngân_sách[Số tiền\nđược lên ngân sách],Trình_theo_dõi_ngân_sách[Tháng],\"Tháng Chín\",Trình_theo_dõi_ngân_sách[Dịp],\"Ngày lễ\")","v":{"v":0,"d":"0 ₫"}},{"$f":"SUMIFS(Trình_theo_dõi_ngân_sách[Số tiền\nđược lên ngân sách],Trình_theo_dõi_ngân_sách[Tháng],\"Tháng Chín\",Trình_theo_dõi_ngân_sách[Dịp],\"<>Ngày lễ\",Trình_theo_dõi_ngân_sách[Dịp],\"<>Sinh nhật\")","v":{"v":0,"d":"0 ₫"}},{"$f":"SUMIFS(Trình_theo_dõi_ngân_sách[Số tiền\nđã chi],Trình_theo_dõi_ngân_sách[Tháng],\"Tháng Chín\")","v":{"v":0,"d":"0 ₫"}}]
[null,null,"Tháng Mười","Thg10",{"$f":"SUMIFS(Trình_theo_dõi_ngân_sách[Số tiền\nđược lên ngân sách],Trình_theo_dõi_ngân_sách[Tháng],\"Tháng Mười\",Trình_theo_dõi_ngân_sách[Dịp],\"Sinh nhật\")","v":{"v":0,"d":"0 ₫"}},{"$f":"SUMIFS(Trình_theo_dõi_ngân_sách[Số tiền\nđược lên ngân sách],Trình_theo_dõi_ngân_sách[Tháng],\"Tháng Mười\",Trình_theo_dõi_ngân_sách[Dịp],\"Ngày lễ\")","v":{"v":0,"d":"0 ₫"}},{"$f":"SUMIFS(Trình_theo_dõi_ngân_sách[Số tiền\nđược lên ngân sách],Trình_theo_dõi_ngân_sách[Tháng],\"Tháng Mười\",Trình_theo_dõi_ngân_sách[Dịp],\"<>Ngày lễ\",Trình_theo_dõi_ngân_sách[Dịp],\"<>Sinh nhật\")","v":{"v":0,"d":"0 ₫"}},{"$f":"SUMIFS(Trình_theo_dõi_ngân_sách[Số tiền\nđã chi],Trình_theo_dõi_ngân_sách[Tháng],\"Tháng Mười\")","v":{"v":0,"d":"0 ₫"}}]
[null,null,"Tháng Mười Một","Thg11",{"$f":"SUMIFS(Trình_theo_dõi_ngân_sách[Số tiền\nđược lên ngân sách],Trình_theo_dõi_ngân_sách[Tháng],\"Tháng Mười Một\",Trình_theo_dõi_ngân_sách[Dịp],\"Sinh nhật\")","v":{"v":0,"d":"0 ₫"}},{"$f":"SUMIFS(Trình_theo_dõi_ngân_sách[Số tiền\nđược lên ngân sách],Trình_theo_dõi_ngân_sách[Tháng],\"Tháng Mười Một\",Trình_theo_dõi_ngân_sách[Dịp],\"Ngày lễ\")","v":{"v":0,"d":"0 ₫"}},{"$f":"SUMIFS(Trình_theo_dõi_ngân_sách[Số tiền\nđược lên ngân sách],Trình_theo_dõi_ngân_sách[Tháng],\"Tháng Mười Một\",Trình_theo_dõi_ngân_sách[Dịp],\"<>Ngày lễ\",Trình_theo_dõi_ngân_sách[Dịp],\"<>Sinh nhật\")","v":{"v":0,"d":"0 ₫"}},{"$f":"SUMIFS(Trình_theo_dõi_ngân_sách[Số tiền\nđã chi],Trình_theo_dõi_ngân_sách[Tháng],\"Tháng Mười Một\")","v":{"v":0,"d":"0 ₫"}}]
[null,null,"Tháng Mười Hai","Thg12",{"$f":"SUMIFS(Trình_theo_dõi_ngân_sách[Số tiền\nđược lên ngân sách],Trình_theo_dõi_ngân_sách[Tháng],\"Tháng Mười Hai\",Trình_theo_dõi_ngân_sách[Dịp],\"Sinh nhật\")","v":{"v":0,"d":"0 ₫"}},{"$f":"SUMIFS(Trình_theo_dõi_ngân_sách[Số tiền\nđược lên ngân sách],Trình_theo_dõi_ngân_sách[Tháng],\"Tháng Mười Hai\",Trình_theo_dõi_ngân_sách[Dịp],\"Ngày lễ\")","v":{"v":0,"d":"0 ₫"}},{"$f":"SUMIFS(Trình_theo_dõi_ngân_sách[Số tiền\nđược lên ngân sách],Trình_theo_dõi_ngân_sách[Tháng],\"Tháng Mười Hai\",Trình_theo_dõi_ngân_sách[Dịp],\"<>Ngày lễ\",Trình_theo_dõi_ngân_sách[Dịp],\"<>Sinh nhật\")","v":{"v":0,"d":"0 ₫"}},{"$f":"SUMIFS(Trình_theo_dõi_ngân_sách[Số tiền\nđã chi],Trình_theo_dõi_ngân_sách[Tháng],\"Tháng Mười Hai\")","v":{"v":0,"d":"0 ₫"}}]